[Event "Sunway Sitges Chess Festival"]
[Date "2024.12.21"]
[White "Mannion, Stephen R"]
[Black "Xu, Minghui"]
[WhiteElo "2139"]
[BlackElo "2405"]
[Round "2.21"]
[Result "0-1"]
[TimeControl "40/5400+30:1800+30"]

1. e4 {[%clk 1:30:59]} 1... e5 2. Nf3 Nc6 {[%clk 1:30:52]} 3. Bc4 {[%clk
1:31:50]} 3... Nf6 {[%clk 1:31:05]} 4. d4 exd4 {[%clk 1:29:35]} 5. e5 d5 {[%clk
1:30:28]} 6. Bb5 Nd7 {[%clk 1:30:21]} 7. O-O Be7 {[%clk 1:27:10]} 8. Bxc6 bxc6
9. Nxd4 Nb8 10. Qf3 {[%clk 1:28:13]} 10... c5 11. Nf5 {[%clk 1:26:50]} 11...
Bxf5 {[%clk 1:31:10]} 12. Qxf5 {[%clk 1:28:38]} 12... Qd7 {[%clk 1:30:17]} 13.
Qxd7+ {[%clk 1:25:23]} 13... Nxd7 {[%clk 1:26:04]} 14. Re1 O-O-O {[%clk
1:16:32]} 15. Nd2 Rhe8 {[%clk 0:51:59]} 16. f4 f5 {[%clk 0:18:51]} 17. Nf3 Nf8
{[%clk 0:17:50]} 18. h4 {[%clk 0:59:16]} 18... g6 {[%clk 0:-6:-6]} 19. c3 Ne6
20. g3 {[%clk 0:49:00]} 20... c6 21. Bd2 {[%clk 0:36:00]} 21... c4 {[%clk
0:27:48]} 22. b3 {[%clk 0:32:55]} 22... Nc5 {[%clk 0:11:55]} 23. Be3 {[%clk
0:13:41]} 23... Ne4 {[%clk 0:26:34]} 24. Nd4 {[%clk 0:27:32]} 24... c5 25. Nc6
{[%clk 0:26:56]} 25... Rd7 {[%clk 0:22:51]} 26. bxc4 dxc4 {[%clk 0:03:47]} 27.
Kg2 {[%clk 0:04:18]} 27... Bd8 {[%clk 0:00:28]} 28. e6 {[%clk 0:-2:-13]} 28...
Rxe6 {[%clk 0:19:56]} 29. Ne5 {[%clk 0:03:31]} 29... Rd5 {[%clk 0:19:05]} 30.
Nxc4 {[%clk 0:03:09]} 30... Bf6 {[%clk 0:13:12]} 31. Red1 {[%clk 0:00:02]} 31...
Nxc3 {[%clk 0:07:10]} 0-1

[Variant "Standard"]
[Site "Europe Echecs"]

[Event "Sunway Sitges Chess Festival"]
[Date "2024.12.21"]
[White "Diaz Rosas, Julio Cesar"]
[Black "Hristodorescu, Daniel"]
[WhiteElo "2401"]
[BlackElo "2138"]
[Round "2.22"]
[Result "1-0"]
[TimeControl "40/5400+30:1800+30"]

1. d4 {[%clk 1:30:29]} 1... Nf6 2. c4 g6 {[%clk 1:30:55]} 3. Nc3 Bg7 4. e4 O-O
{[%clk 1:31:42]} 5. Be2 {[%clk 1:32:06]} 5... d6 {[%clk 1:31:35]} 6. Be3 e5
{[%clk 1:31:30]} 7. d5 h5 {[%clk 1:27:41]} 8. h3 {[%clk 1:30:46]} 8... Nh7
{[%clk 1:27:11]} 9. g4 h4 {[%clk 1:23:30]} 10. Qd2 g5 11. Nf3 f6 12. c5 Rf7
{[%clk 1:10:12]} 13. cxd6 cxd6 14. Rc1 {[%clk 1:28:34]} 14... Nf8 15. Nb5 {[%clk
1:28:35]} 15... Na6 {[%clk 1:08:01]} 16. Nxa7 Bd7 {[%clk 1:03:41]} 17. Bxa6 Rxa7
18. Bxa7 {[%clk 1:24:54]} 18... bxa6 {[%clk 1:03:42]} 19. Be3 Bb5 20. Qc3 Rb7
21. b3 Ng6 22. Qc8 Qxc8 {[%clk 1:01:11]} 23. Rxc8+ {[%clk 1:23:44]} 23... Kf7
{[%clk 0:59:12]} 24. Kd2 {[%clk 1:22:14]} 24... Bd7 {[%clk 0:58:12]} 25. Rc2
{[%clk 1:21:48]} 25... Ke8 {[%clk 0:57:50]} 26. Rhc1 Kd8 {[%clk 0:54:54]} 27.
Rc6 Bxc6 {[%clk 0:54:49]} 28. Rxc6 {[%clk 1:19:57]} 1-0

[Variant "Standard"]
[Site "Europe Echecs"]

[Event "Sunway Sitges Chess Festival"]
[Date "2024.12.21"]
[White "Aloma Vidal, Robert"]
[Black "Lopez Garcia, Miguel Angel"]
[WhiteElo "2398"]
[BlackElo "2127"]
[Round "2.23"]
[Result "1-0"]
[TimeControl "40/5400+30:1800+30"]

1. d4 Nf6 {[%clk 1:30:53]} 2. Nf3 {[%clk 1:31:21]} 2... e6 {[%clk 1:27:18]} 3.
g3 {[%clk 1:30:47]} 3... b6 {[%clk 1:30:55]} 4. Bg2 {[%clk 1:28:44]} 4... Bb7
{[%clk 1:31:14]} 5. O-O {[%clk 1:29:02]} 5... Be7 {[%clk 1:30:49]} 6. c4 {[%clk
1:28:51]} 6... O-O {[%clk 1:30:22]} 7. h4 {[%clk 1:20:47]} 7... d6 {[%clk
1:25:56]} 8. Nc3 {[%clk 1:13:17]} 8... Ne4 {[%clk 1:17:14]} 9. Qd3 {[%clk
1:08:36]} 9... Nxc3 {[%clk 1:15:24]} 10. bxc3 {[%clk 1:02:54]} 10... Nc6 {[%clk
1:00:26]} 11. d5 {[%clk 0:58:44]} 11... exd5 {[%clk 0:59:36]} 12. cxd5 {[%clk
0:57:47]} 12... Nb8 {[%clk 0:51:30]} 13. Ng5 {[%clk 0:50:08]} 13... Bxg5 {[%clk
0:49:45]} 14. hxg5 {[%clk 0:47:18]} 14... Nd7 {[%clk 0:18:13]} 15. f4 Nc5 16.
Qc2 Ba6 {[%clk 0:43:41]} 17. c4 {[%clk 0:32:27]} 17... Qe8 {[%clk 0:39:21]} 18.
a4 f5 {[%clk 0:37:41]} 19. gxf6 {[%clk 0:27:47]} 19... Rxf6 {[%clk 0:38:04]} 20.
Ra3 {[%clk 0:22:54]} 20... Qh5 {[%clk 0:36:13]} 21. Be3 Re8 22. Kf2 Nd7 {[%clk
0:27:05]} 23. Rh1 {[%clk 0:10:10]} 23... Qg6 {[%clk 0:26:50]} 24. Qxg6 {[%clk
0:10:28]} 24... Rxg6 {[%clk 0:24:58]} 25. Bd4 {[%clk 0:08:41]} 25... Bxc4 {[%clk
0:21:37]} 26. e4 {[%clk 0:06:15]} 26... Nc5 {[%clk 0:23:07]} 27. Bxc5 {[%clk
0:06:37]} 27... bxc5 {[%clk 0:20:21]} 28. Rb1 {[%clk 0:05:31]} 28... Ba6 {[%clk
0:19:09]} 29. Re3 {[%clk 0:00:39]} 29... Rf6 {[%clk 0:19:00]} 30. Bh3 {[%clk
0:-2:-31]} 30... g5 {[%clk 0:18:13]} 31. Kf3 {[%clk 0:-3:-30]} 31... h5 {[%clk
0:16:54]} 32. Bd7 {[%clk 0:-6:-39]} 32... Ref8 {[%clk 0:15:47]} 33. f5 {[%clk
0:-7:-38]} 33... Rd8 {[%clk 0:15:11]} 34. Be6+ {[%clk 0:-7:-57]} 34... Kg7
{[%clk 0:14:31]} 35. e5 {[%clk 0:-8:-51]} 35... dxe5 {[%clk 0:13:07]} 36. Ke4
{[%clk 0:-10:-26]} 36... c4 {[%clk 0:12:57]} 37. Kxe5 {[%clk 0:01:09]} 37...
Rff8 {[%clk 0:11:44]} 38. Rh1 {[%clk 0:00:14]} 38... Rh8 {[%clk 0:02:46]} 39.
f6+ {[%clk 0:00:39]} 39... Kf8 {[%clk 0:02:19]} 40. Kf5 {[%clk 0:30:44]} 40...
Bb7 {[%clk 0:00:-58]} 41. Ke5 {[%clk 0:22:00]} 41... c6 {[%clk 0:-2:-39]} 42.
Rb1 {[%clk 0:18:09]} 42... Ba8 {[%clk 0:24:01]} 43. d6 {[%clk 0:25:02]} 43... h4
{[%clk 0:24:22]} 44. gxh4 {[%clk 0:23:34]} 44... Rxh4 {[%clk 0:21:45]} 45. d7
{[%clk 0:22:26]} 45... c3 {[%clk 0:22:23]} 46. Rxc3 {[%clk 0:22:23]} 1-0

[Variant "Standard"]
[Site "Europe Echecs"]

[Event "Sunway Sitges Chess Festival"]
[Date "2024.12.21"]
[White "Pniaczek, Marek"]
[Black "Isanzhulov, Arystan"]
[WhiteElo "2132"]
[BlackElo "2395"]
[Round "2.24"]
[Result "0-1"]
[TimeControl "40/5400+30:1800+30"]

1. e4 g6 {[%clk 1:30:11]} 2. d4 {[%clk 1:30:52]} 2... d6 3. Nf3 {[%clk 1:28:24]}
3... Bg7 {[%clk 1:28:46]} 4. Bd3 {[%clk 1:19:26]} 4... Nd7 {[%clk 1:20:17]} 5.
O-O {[%clk 1:19:12]} 5... e5 {[%clk 1:20:40]} 6. c3 {[%clk 1:17:52]} 6... Ngf6
{[%clk 1:19:55]} 7. Re1 {[%clk 1:25:38]} 7... O-O {[%clk 1:20:18]} 8. Nbd2
{[%clk 1:23:17]} 8... Re8 {[%clk 1:18:35]} 9. h3 {[%clk 1:21:18]} 9... h6 10.
Nf1 {[%clk 1:07:28]} 10... d5 {[%clk 1:04:10]} 11. Nxe5 {[%clk 0:59:28]} 11...
Nxe5 12. dxe5 Rxe5 {[%clk 0:56:49]} 13. f4 {[%clk 0:51:22]} 13... Re8 {[%clk
0:53:55]} 14. e5 {[%clk 0:51:22]} 14... Nh7 {[%clk 0:51:50]} 15. Ng3 Nf8 16. Qf3
{[%clk 0:28:22]} 16... Qh4 {[%clk 0:44:49]} 17. Bd2 {[%clk 0:22:29]} 17... Bd7
18. Rf1 Rad8 {[%clk 0:34:05]} 19. f5 Rxe5 20. fxg6 {[%clk 0:11:28]} 20... fxg6
21. Bf4 {[%clk 0:10:33]} 21... Re6 22. Bxc7 {[%clk 0:09:07]} 22... Rc8 23. Bf4
{[%clk 0:07:19]} 23... Bc6 24. Qf2 {[%clk 0:01:55]} 24... Nd7 25. Rae1 {[%clk
0:-2:-17]} 25... Rf6 {[%clk 0:20:26]} 26. Qd2 {[%clk 0:-11:-17]} 26... Rcf8 27.
Bc7 {[%clk 0:-14:-56]} 27... Nc5 28. Rxf6 {[%clk 0:-15:-15]} 28... Rxf6 29. Bc2
{[%clk 0:-18:-53]} 29... Re6 30. Kh2 {[%clk 0:-27:-40]} 30... Kh7 31. Rxe6
{[%clk 0:01:43]} 31... Nxe6 32. Qd3 Qg5 33. Bb8 d4 34. cxd4 {[%clk 0:00:45]}
34... Nxd4 35. Bb1 h5 {[%clk 0:01:57]} 36. Kg1 {[%clk 0:00:31]} 36... Nf5 {[%clk
0:01:03]} 37. Kh2 {[%clk 0:00:32]} 37... Ne3 {[%clk 0:00:39]} 38. Kg1 Nxg2
{[%clk 0:00:36]} 39. Kh2 Nh4 {[%clk 0:00:41]} 0-1

[Variant "Standard"]
[Site "Europe Echecs"]

[Event "Sunway Sitges Chess Festival"]
[Date "2024.12.21"]
[White "Hess, Max"]
[Black "Sijpkens, Michiel"]
[WhiteElo "2385"]
[BlackElo "2120"]
[Round "2.25"]
[Result "1-0"]
[TimeControl "40/5400+30:1800+30"]

1. e4 {[%clk 1:30:57]} 1... c6 {[%clk 1:30:36]} 2. d4 {[%clk 1:31:09]} 2... d5
{[%clk 1:31:01]} 3. e5 {[%clk 1:31:30]} 3... Bf5 {[%clk 1:31:04]} 4. h4 {[%clk
1:31:41]} 4... h5 {[%clk 1:31:11]} 5. Bd3 {[%clk 1:32:04]} 5... Bxd3 {[%clk
1:31:12]} 6. Qxd3 {[%clk 1:32:28]} 6... Qa5+ {[%clk 1:31:19]} 7. c3 {[%clk
1:32:32]} 7... Qa6 {[%clk 1:29:57]} 8. Qf3 {[%clk 1:31:39]} 8... e6 {[%clk
1:29:50]} 9. b4 {[%clk 1:30:34]} 9... Qa4 {[%clk 1:25:37]} 10. Ne2 {[%clk
1:32:23]} 10... a5 {[%clk 1:24:16]} 11. bxa5 {[%clk 1:31:25]} 11... c5 {[%clk
1:18:03]} 12. O-O {[%clk 1:27:53]} 12... Nc6 {[%clk 1:23:03]} 13. Be3 {[%clk
1:22:12]} 13... Nge7 {[%clk 1:21:44]} 14. Nd2 {[%clk 1:18:44]} 14... Nf5 {[%clk
1:05:11]} 15. Rfb1 {[%clk 1:10:39]} 15... cxd4 {[%clk 1:14:44]} 16. cxd4 {[%clk
0:53:25]} 16... Bb4 {[%clk 1:06:32]} 17. Nb3 {[%clk 0:40:51]} 17... Nxh4 {[%clk
1:01:58]} 18. Qh3 {[%clk 0:46:43]} 18... Nf5 {[%clk 1:00:32]} 19. Bg5 {[%clk
0:42:36]} 19... Bxa5 20. Nf4 {[%clk 0:18:46]} 20... Bd8 {[%clk 0:19:11]} 21.
Nxh5 {[%clk 0:35:20]} 21... Kf8 {[%clk 0:14:11]} 22. Bxd8 {[%clk 0:25:23]} 22...
Nxd8 {[%clk 0:09:16]} 23. Qg4 {[%clk 0:20:26]} 23... b6 {[%clk 0:05:09]} 24. Qg5
{[%clk 0:14:43]} 24... g6 {[%clk 0:15:54]} 25. Nf4 {[%clk 0:12:28]} 25... Nxd4
{[%clk 0:13:57]} 26. Qf6 {[%clk 0:12:20]} 26... Rh6 {[%clk 0:13:56]} 27. Nxd4
{[%clk 0:07:16]} 27... Qxd4 {[%clk 0:14:19]} 28. Rd1 {[%clk 0:07:17]} 28... Qc5
{[%clk 0:08:23]} 29. Qg5 {[%clk 0:05:39]} 29... Rh7 {[%clk 0:05:35]} 30. Qf6
{[%clk 0:06:02]} 30... Rh6 {[%clk 0:04:36]} 31. Qg5 {[%clk 0:06:28]} 31... Rh7
{[%clk 0:03:06]} 32. Rac1 {[%clk 0:04:07]} 32... Qe7 {[%clk 0:04:56]} 33. Qxe7+
{[%clk 0:04:15]} 33... Kxe7 {[%clk 0:05:22]} 34. Nxg6+ {[%clk 0:04:40]} 34...
Ke8 {[%clk 0:05:15]} 35. Rc7 {[%clk 0:05:04]} 35... fxg6 {[%clk 0:04:48]} 36.
Rxh7 {[%clk 0:05:29]} 36... Nf7 {[%clk 0:04:52]} 37. Rc1 {[%clk 0:05:12]} 37...
Ra7 {[%clk 0:02:16]} 38. Rc6 {[%clk 0:04:00]} 38... Nd8 {[%clk 0:02:19]} 39.
Rxe6+ {[%clk 0:03:16]} 39... Nxe6 {[%clk 0:02:41]} 40. Rxa7 {[%clk 0:33:42]} 1-0

[Variant "Standard"]
[Site "Europe Echecs"]

[Event "Sunway Sitges Chess Festival"]
[Date "2024.12.21"]
[White "De Seroux, Camille"]
[Black "Anwesh, Upadhyaya"]
[WhiteElo "2126"]
[BlackElo "2379"]
[Round "2.26"]
[Result "0-1"]
[TimeControl "40/5400+30:1800+30"]

1. e4 c6 2. Nc3 g6 3. d4 d5 4. e5 Bg7 5. Be2 Nh6 6. h4 f6 7. exf6 exf6 8. Bf4
Nf7 9. Qd2 O-O 10. O-O-O b5 11. g4 Nd7 12. Nf3 Nb6 13. Rdg1 Re8 14. g5 Bf5 15.
h5 b4 16. Nb1 Be4 17. hxg6 hxg6 18. Rh2 Nc4 19. Bxc4 dxc4 20. gxf6 Qxf6 21. Nh4
Rad8 22. c3 c5 23. Be3 bxc3 24. Nxc3 cxd4 25. Nxe4 Rxe4 26. Rxg6 dxe3 27. Qc2 e2
0-1

[Variant "Standard"]
[Site "Europe Echecs"]

[Event "Sunway Sitges Chess Festival"]
[Date "2024.12.21"]
[White "Hu, Jiani"]
[Black "Sofronie, Iulian"]
[WhiteElo "2101"]
[BlackElo "2368"]
[Round "2.27"]
[Result "1/2-1/2"]
[TimeControl "40/5400+30:1800+30"]

1. e4 {[%clk 1:30:54]} 1... e5 {[%clk 1:30:52]} 2. Nf3 {[%clk 1:31:18]} 2... Nc6
{[%clk 1:31:19]} 3. d4 {[%clk 1:31:38]} 3... exd4 {[%clk 1:31:42]} 4. Nxd4
{[%clk 1:32:01]} 4... Nf6 {[%clk 1:32:08]} 5. Nc3 {[%clk 1:32:23]} 5... Bb4
{[%clk 1:32:21]} 6. Nxc6 {[%clk 1:32:43]} 6... bxc6 {[%clk 1:32:46]} 7. Bd3
{[%clk 1:33:09]} 7... O-O {[%clk 1:31:42]} 8. O-O {[%clk 1:33:28]} 8... d5
{[%clk 1:31:51]} 9. exd5 {[%clk 1:33:32]} 9... cxd5 {[%clk 1:32:17]} 10. Bg5
{[%clk 1:33:49]} 10... Be6 {[%clk 1:29:16]} 11. Qf3 {[%clk 1:25:36]} 11... h6
{[%clk 1:29:10]} 12. Bxf6 {[%clk 1:19:42]} 12... Qxf6 {[%clk 1:29:33]} 13. Qxf6
{[%clk 1:20:03]} 13... gxf6 {[%clk 1:29:59]} 14. Ne2 {[%clk 1:15:10]} 14... c5
{[%clk 1:08:20]} 15. Nf4 {[%clk 0:42:57]} 15... c4 {[%clk 1:06:30]} 16. Be2
{[%clk 0:42:00]} 16... Bd6 {[%clk 1:05:00]} 17. Nxe6 {[%clk 0:40:28]} 17... fxe6
{[%clk 1:05:24]} 18. b3 {[%clk 0:39:52]} 18... Be5 {[%clk 1:04:06]} 19. Rad1
{[%clk 0:39:48]} 19... cxb3 20. axb3 {[%clk 0:39:18]} 20... Bc3 {[%clk 1:02:19]}
21. f4 {[%clk 0:37:25]} 21... Rad8 {[%clk 0:57:53]} 22. Rf3 {[%clk 0:28:22]}
22... Bb4 {[%clk 0:41:52]} 23. Kf1 {[%clk 0:26:30]} 23... f5 {[%clk 0:40:40]}
24. Rfd3 {[%clk 0:17:34]} 24... Ba5 {[%clk 0:40:11]} 25. c4 {[%clk 0:16:59]}
25... dxc4 {[%clk 0:40:25]} 26. Rxd8 {[%clk 0:17:21]} 26... Rxd8 {[%clk
0:40:52]} 27. Rxd8+ {[%clk 0:17:41]} 27... Bxd8 {[%clk 0:41:18]} 28. Bxc4 {[%clk
0:17:55]} 28... Kf7 {[%clk 0:41:42]} 29. Kf2 {[%clk 0:18:03]} 29... Kf6 {[%clk
0:42:09]} 30. Kf3 {[%clk 0:18:10]} 30... e5 {[%clk 0:42:35]} 1/2-1/2

[Variant "Standard"]
[Site "Europe Echecs"]

[Event "Sunway Sitges Chess Festival"]
[Date "2024.12.21"]
[White "Song, Edward"]
[Black "Koskinen, Henri"]
[WhiteElo "2363"]
[BlackElo "2118"]
[Round "2.28"]
[Result "1-0"]
[TimeControl "40/5400+30:1800+30"]

1. e4 {[%clk 1:30:56]} 1... e5 {[%clk 1:30:48]} 2. Nf3 {[%clk 1:31:20]} 2... Nc6
{[%clk 1:31:12]} 3. Bb5 {[%clk 1:31:45]} 3... a6 {[%clk 1:31:07]} 4. Ba4 {[%clk
1:32:10]} 4... Nf6 {[%clk 1:31:19]} 5. O-O {[%clk 1:32:34]} 5... Be7 {[%clk
1:31:30]} 6. Re1 {[%clk 1:32:58]} 6... b5 {[%clk 1:31:53]} 7. Bb3 {[%clk
1:33:25]} 7... d6 {[%clk 1:31:42]} 8. c3 {[%clk 1:33:50]} 8... O-O {[%clk
1:32:04]} 9. h3 {[%clk 1:34:16]} 9... Na5 {[%clk 1:30:46]} 10. Bc2 {[%clk
1:34:40]} 10... c5 {[%clk 1:31:12]} 11. d4 {[%clk 1:35:05]} 11... Qc7 {[%clk
1:30:09]} 12. d5 {[%clk 1:35:27]} 12... Bd7 {[%clk 1:25:34]} 13. b3 {[%clk
1:35:41]} 13... Nb7 {[%clk 1:24:29]} 14. c4 {[%clk 1:35:44]} 14... Rfb8 {[%clk
1:17:20]} 15. Nc3 {[%clk 1:31:56]} 15... g6 {[%clk 1:16:08]} 16. Bd3 {[%clk
1:21:52]} 16... b4 {[%clk 1:11:06]} 17. Ne2 {[%clk 1:21:27]} 17... Nh5 {[%clk
1:11:16]} 18. g4 {[%clk 1:03:58]} 18... Ng7 {[%clk 1:11:17]} 19. Ng3 {[%clk
0:58:39]} 19... f6 {[%clk 1:09:39]} 20. Kh2 {[%clk 0:55:56]} 20... Nd8 {[%clk
1:05:43]} 21. Bd2 {[%clk 0:47:48]} 21... Nf7 {[%clk 1:05:08]} 22. Rg1 {[%clk
0:48:06]} 22... Kh8 {[%clk 1:02:26]} 23. Ne1 {[%clk 0:45:19]} 23... Rg8 {[%clk
0:59:12]} 24. Ng2 {[%clk 0:43:34]} 24... a5 {[%clk 0:54:27]} 25. a4 {[%clk
0:43:49]} 25... Raf8 {[%clk 0:48:33]} 26. Ne3 {[%clk 0:34:05]} 26... Qd8 {[%clk
0:46:36]} 27. Qe2 {[%clk 0:33:36]} 27... Bc8 {[%clk 0:39:36]} 28. Rg2 {[%clk
0:33:50]} 28... Qd7 {[%clk 0:39:46]} 29. Rh1 {[%clk 0:33:12]} 29... Qe8 {[%clk
0:35:58]} 30. Kg1 {[%clk 0:29:47]} 30... f5 {[%clk 0:31:51]} 31. exf5 {[%clk
0:23:12]} 31... gxf5 {[%clk 0:31:43]} 32. Nexf5 {[%clk 0:08:43]} 32... Nxf5
{[%clk 0:29:54]} 33. Bxf5 {[%clk 0:08:46]} 33... Bg5 {[%clk 0:28:11]} 34. Bxg5
{[%clk 0:04:58]} 34... Nxg5 {[%clk 0:27:02]} 35. h4 {[%clk 0:05:16]} 35... Nf7
{[%clk 0:24:28]} 36. Bxc8 {[%clk 0:04:31]} 36... Qxc8 {[%clk 0:24:47]} 37. g5
{[%clk 0:03:04]} 37... e4 {[%clk 0:22:49]} 38. Nxe4 {[%clk 0:02:45]} 38... Ne5
{[%clk 0:23:05]} 39. Nxd6 {[%clk 0:01:58]} 39... Nf3+ {[%clk 0:23:15]} 40. Qxf3
{[%clk 0:32:10]} 1-0

[Variant "Standard"]
[Site "Europe Echecs"]

[Event "Sunway Sitges Chess Festival"]
[Date "2024.12.21"]
[White "Ghazaryan, Raffi"]
[Black "kiladze, Luka"]
[WhiteElo "2097"]
[BlackElo "2359"]
[Round "2.29"]
[Result "1/2-1/2"]
[TimeControl "40/5400+30:1800+30"]

1. d4 {[%clk 1:30:58]} 1... Nf6 {[%clk 1:28:42]} 2. c4 {[%clk 1:31:19]} 2... e6
{[%clk 1:29:09]} 3. Nc3 {[%clk 1:31:34]} 3... d5 {[%clk 1:29:10]} 4. Nf3 {[%clk
1:31:37]} 4... a6 {[%clk 1:29:35]} 5. cxd5 {[%clk 1:31:36]} 5... exd5 {[%clk
1:30:03]} 6. Bg5 {[%clk 1:31:58]} 6... Be6 {[%clk 1:30:29]} 7. e3 {[%clk
1:31:47]} 7... Nbd7 {[%clk 1:30:48]} 8. Bd3 {[%clk 1:31:05]} 8... Bd6 {[%clk
1:31:13]} 9. O-O {[%clk 1:30:56]} 9... c6 {[%clk 1:30:49]} 10. Bf4 {[%clk
1:29:26]} 10... Qc7 {[%clk 1:31:07]} 11. Qd2 {[%clk 1:27:54]} 11... O-O {[%clk
1:26:25]} 12. h3 {[%clk 1:26:28]} 12... Nb6 {[%clk 1:25:03]} 13. Bxd6 {[%clk
1:12:55]} 13... Qxd6 {[%clk 1:25:28]} 14. Rfe1 {[%clk 1:12:59]} 14... Rfe8
{[%clk 1:19:48]} 15. a3 {[%clk 1:05:28]} 15... Qd8 {[%clk 1:04:10]} 16. Ne5
{[%clk 0:57:52]} 16... Nc8 {[%clk 1:00:37]} 17. b4 {[%clk 0:56:18]} 17... Nd6
{[%clk 1:00:07]} 18. Qc2 {[%clk 0:38:56]} 18... g6 {[%clk 0:55:08]} 19. a4
{[%clk 0:33:19]} 19... Rc8 {[%clk 0:48:42]} 20. Qb2 {[%clk 0:29:15]} 20... Nfe4
{[%clk 0:45:43]} 21. Rac1 {[%clk 0:24:25]} 21... f6 {[%clk 0:43:47]} 22. Nf3
{[%clk 0:23:16]} 22... b5 {[%clk 0:41:37]} 23. Nd2 {[%clk 0:17:17]} 23... Nxd2
{[%clk 0:40:36]} 24. Qxd2 {[%clk 0:17:36]} 24... f5 {[%clk 0:40:31]} 25. f3
{[%clk 0:14:18]} 25... Qg5 {[%clk 0:37:13]} 26. Qf2 {[%clk 0:12:36]} 26... f4
{[%clk 0:35:20]} 27. h4 {[%clk 0:10:38]} 27... fxe3 {[%clk 0:31:40]} 28. hxg5
{[%clk 0:09:34]} 28... exf2+ {[%clk 0:32:06]} 29. Kxf2 {[%clk 0:09:58]} 29...
Kf7 {[%clk 0:23:49]} 30. a5 {[%clk 0:09:06]} 1/2-1/2

[Variant "Standard"]
[Site "Europe Echecs"]

[Event "Sunway Sitges Chess Festival"]
[Date "2024.12.21"]
[White "Tan, Jun Ying"]
[Black "Srijak Sengupta"]
[WhiteElo "2357"]
[BlackElo "2112"]
[Round "2.30"]
[Result "1-0"]
[TimeControl "40/5400+30:1800+30"]

1. Nf3 {[%clk 1:30:54]} 1... Nf6 {[%clk 1:30:47]} 2. c4 {[%clk 1:31:15]} 2... e6
{[%clk 1:31:05]} 3. g3 {[%clk 1:31:25]} 3... Be7 {[%clk 1:31:24]} 4. Bg2 {[%clk
1:31:06]} 4... d5 {[%clk 1:31:42]} 5. O-O {[%clk 1:31:16]} 5... O-O {[%clk
1:32:04]} 6. b3 {[%clk 1:31:19]} 6... c5 {[%clk 1:26:57]} 7. e3 {[%clk 1:31:07]}
7... b6 {[%clk 1:26:12]} 8. Bb2 {[%clk 1:30:42]} 8... Bb7 {[%clk 1:26:32]} 9.
Nc3 {[%clk 1:30:54]} 9... Nbd7 {[%clk 1:22:48]} 10. d3 {[%clk 1:30:22]} 10... a6
{[%clk 1:22:14]} 11. Qe2 {[%clk 1:23:10]} 11... Qc7 {[%clk 1:18:42]} 12. Rad1
{[%clk 1:05:36]} 12... Rac8 {[%clk 1:15:02]} 13. Nh4 {[%clk 1:01:35]} 13... Rfd8
{[%clk 1:07:40]} 14. f4 {[%clk 1:01:16]} 14... dxc4 {[%clk 0:56:13]} 15. bxc4
{[%clk 1:00:55]} 15... Bxg2 {[%clk 0:56:21]} 16. Nxg2 {[%clk 1:01:14]} 16... Qc6
{[%clk 0:49:14]} 17. a4 {[%clk 1:01:00]} 17... Nb8 {[%clk 0:34:13]} 18. g4 Qb7
{[%clk 0:29:44]} 19. g5 {[%clk 0:58:22]} 19... Ne8 {[%clk 0:30:06]} 20. h4
{[%clk 0:50:28]} 20... Nc6 {[%clk 0:29:17]} 21. h5 {[%clk 0:33:32]} 21... Nb4
{[%clk 0:27:46]} 22. h6 {[%clk 0:29:53]} 22... g6 {[%clk 0:27:48]} 23. Ne1
{[%clk 0:24:18]} 23... f6 {[%clk 0:23:29]} 24. Ne4 {[%clk 0:22:31]} 24... Nxd3
{[%clk 0:21:01]} 25. Qf3 {[%clk 0:16:03]} 25... Nd6 {[%clk 0:09:18]} 26. Nxf6+
{[%clk 0:15:44]} 26... Bxf6 {[%clk 0:09:42]} 27. Qxb7 {[%clk 0:11:47]} 27...
Nxb7 {[%clk 0:10:10]} 28. Bxf6 {[%clk 0:11:37]} 28... Nxe1 {[%clk 0:10:34]} 29.
Bxd8 {[%clk 0:11:47]} 29... Nc2 {[%clk 0:10:59]} 30. Bxb6 {[%clk 0:04:59]} 30...
Nxe3 {[%clk 0:11:23]} 31. Rd7 {[%clk 0:05:01]} 31... Nxf1 {[%clk 0:11:46]} 32.
Kxf1 {[%clk 0:04:53]} 1-0

[Variant "Standard"]
[Site "Europe Echecs"]